bitfinex/quotes_ETHUSD_20230102
["timestamp","ask_amount","ask_price","bid_price","bid_amount"]
[1672668284706,2.036,1219.6,1219.3,47.27978105]
[1672668284707,11.066,1219.6,1219.3,47.27978105]
[1672668284913,0.004,1219.7,1219.5,20.0]
[1672668285125,12.0,1219.7,1219.5,3.21978607]
[1672668285481,12.0,1219.7,1219.0,12.20307]
[1672668285482,19.0,1219.7,1219.1,0.09]
[1672668285653,19.0,1219.7,1219.0,0.091]
[1672668285654,4.055,1219.2,1219.0,0.091]
[1672668285861,0.066,1219.3,1218.9,0.091]
[1672668286067,2.031,1219.4,1218.8,8.20423]
[1672668286283,10.23181,1219.4,1218.8,0.091]
[1672668286490,4.4345,1219.3,1218.7,19.50162]
[1672668286718,2.011,1219.1,1218.7,11.29631]
[1672668286987,2.029,1219.2,1218.7,11.29631]
[1672668286988,2.4636,1219.0,1218.7,3.091]
[1672668287171,2.4636,1219.0,1218.7,3.01500154]
[1672668287385,2.4636,1219.0,1218.7,13.01500154]
[1672668287568,2.4636,1219.0,1218.7,13.10600154]
[1672668288330,2.4636,1219.0,1218.7,21.31121154]
[1672668288906,2.4636,1219.0,1218.7,11.31121154]
[1672668289363,2.029,1218.8,1218.7,0.091]
[1672668289550,6.2749,1218.8,1218.6,0.091]
[1672668289772,2.2469,1218.8,1218.5,0.091]
[1672668290032,2.3721,1218.7,1218.6,0.23]
[1672668290174,6.4241,1218.7,1218.6,0.23]
[1672668290379,5.885,1218.7,1218.5,0.23]
[1672668290607,4.058,1218.6,1218.5,0.23]
[1672668292395,2.029,1218.6,1218.5,0.23]
[1672668292814,2.016,1218.7,1218.5,0.23]
[1672668295824,2.029,1218.6,1218.4,0.091]
[1672668296035,2.029,1218.6,1218.3,8.29912]
[1672668296398,2.029,1218.6,1218.3,12.55150382]
[1672668297592,2.029,1218.6,1218.4,0.23]
[1672668297806,2.737149,1218.6,1218.3,0.091]
[1672668298023,2.011,1218.5,1218.4,8.20732]
[1672668298210,2.011,1218.5,1218.4,0.091]
[1672668298416,2.011,1218.5,1218.3,12.29905]
[1672668298858,2.803149,1218.6,1218.5,1.25199313]
[1672668299089,4.761149,1218.6,1218.5,1.25199313]
[1672668299628,4.0,1218.5,1218.3,0.091]
[1672668299925,4.058,1218.4,1218.2,3.0]
[1672668300140,4.058,1218.4,1218.2,23.41745]
[1672668300141,2.029,1218.4,1218.2,23.41745]
[1672668300285,2.029,1218.4,1218.2,23.50845]
[1672668300494,2.029,1218.4,1218.2,11.29962]
[1672668301486,2.029,1218.4,1218.2,3.091]
[1672668301694,2.029,1218.4,1218.1,8.20886]
[1672668301695,8.81736,1218.4,1218.1,0.091]
[1672668302058,0.6255,1218.4,1218.0,7.0]
[1672668302174,5.05295524,1218.4,1218.0,15.30118]
[1672668302384,0.6255,1218.4,1218.0,15.30118]
[1672668302657,0.6095,1218.4,1218.0,15.30118]
[1672668302866,5.05287826,1218.4,1218.0,0.091]
[1672668303037,4.0,1218.3,1218.0,3.0]
[1672668303389,1.617,1218.2,1218.0,3.0]
[1672668303747,2.78988783,1218.3,1218.2,4.35138401]
[1672668303958,3.434,1218.3,1218.2,4.35138401]
[1672668304226,3.434,1218.3,1218.2,4.21030401]
[1672668304731,9.039,1218.3,1218.2,4.21030401]
[1672668304945,13.4714779,1218.3,1218.2,4.21030401]
[1672668305173,23.85142152,1218.3,1218.2,4.21030401]
[1672668305339,31.47462867,1218.3,1218.2,4.21030401]
[1672668305550,2.027,1218.2,1218.1,0.091]
[1672668305747,22.13748679,1218.2,1217.7,0.09]
[1672668305954,3.219,1217.8,1217.5,16.07966302]
[1672668306166,1.618,1217.7,1217.5,24.97570302]
[1672668306413,1.614,1217.8,1217.7,4.854]
[1672668307675,1.7754,1217.8,1217.7,4.854]
[1672668310313,1.9784,1217.8,1217.7,4.854]
[1672668313819,11.10015736,1217.9,1217.8,4.35267019]
[1672668314034,11.9137751,1217.9,1217.8,4.35267019]
[1672668314611,3.7025151,1217.9,1217.8,4.35267019]
[1672668314821,3.6365151,1217.9,1217.8,4.35267019]
[1672668316104,11.8473651,1217.9,1217.8,4.35267019]
[1672668316289,11.9133651,1217.9,1217.8,4.35267019]
[1672668316662,20.1242151,1217.9,1217.8,4.35267019]
[1672668317046,28.3350651,1217.9,1217.8,4.35267019]
[1672668317271,29.9520651,1217.9,1217.8,4.21159019]
[1672668319390,29.9520651,1217.9,1217.8,4.07051019]
[1672668320388,21.7412151,1217.9,1217.8,4.07051019]
[1672668320603,0.066,1217.9,1217.8,8.21937133]
[1672668320810,4.6211,1218.3,1218.0,0.132]
[1672668321086,4.0,1218.3,1218.0,4.28086114]
[1672668321290,12.20837,1218.3,1218.0,4.28086114]
[1672668321502,15.209833,1218.3,1218.0,4.28086114]
[1672668321862,23.418203,1218.3,1218.0,4.28086114]
[1672668322735,15.209833,1218.3,1218.0,4.28086114]
[1672668323369,16.827833,1218.3,1218.0,4.28086114]
[1672668323709,16.827833,1218.3,1218.1,4.0]
[1672668323710,7.80981046,1218.3,1218.1,4.0]
[1672668324020,7.80981046,1218.3,1218.0,21.01926496]
[1672668324230,7.80981046,1218.3,1218.0,12.55687114]
[1672668326057,3.001463,1218.3,1218.0,20.76705114]
[1672668326333,11.193643,1218.3,1218.0,20.76705114]
[1672668326542,11.209643,1218.3,1218.0,20.76705114]
[1672668326755,3.001463,1218.3,1218.0,12.80925496]
[1672668326907,19.402023,1218.3,1218.0,4.34686114]
[1672668327123,27.626433,1218.3,1218.0,4.28086114]
[1672668328314,27.626433,1218.3,1218.0,12.49101114]
[1672668328594,27.626433,1218.3,1218.0,12.55701114]
[1672668329050,19.418023,1218.3,1218.0,12.55701114]
[1672668329641,19.418023,1218.3,1218.0,4.34686114]
[1672668329852,19.418023,1218.3,1218.0,4.28086114]
[1672668330081,27.626433,1218.3,1218.0,4.28086114]
[1672668330798,4.0,1218.2,1218.0,0.132]
[1672668331007,16.419,1218.1,1218.0,0.132]
[1672668331255,8.2255,1218.1,1218.0,0.132]
[1672668331694,0.016,1218.1,1218.0,0.132]
[1672668331842,27.9680533,1218.2,1218.0,0.132]
[1672668332058,19.7588433,1218.2,1218.0,0.132]
[1672668333269,19.65499842,1218.2,1218.0,0.132]
[1672668333586,27.86419842,1218.2,1218.0,0.132]
[1672668338462,19.65499842,1218.2,1218.0,0.132]
[1672668342283,3.23659842,1218.2,1218.0,8.34214]
[1672668342495,3.22059842,1218.2,1218.0,16.61832]
[1672668342829,26.30946,1218.3,1218.0,0.198]
[1672668343007,24.64146,1218.3,1218.0,0.132]
[1672668344388,5.0,1218.1,1218.0,0.132]
[1672668344599,5.016,1218.1,1218.0,0.132]
[1672668345166,5.016,1218.1,1218.0,8.34218]
[1672668345314,5.016,1218.1,1218.0,11.40818]
[1672668346637,5.016,1218.1,1218.0,15.40818]
[1672668346949,5.016,1218.1,1218.0,19.59956954]
[1672668348673,6.85875537,1218.1,1218.0,19.59956954]
[1672668350209,6.85875537,1218.1,1218.0,27.80974954]
[1672668350353,6.85875537,1218.1,1218.0,28.06213336]
[1672668351752,6.85875537,1218.1,1218.0,36.27231336]
[1672668352366,6.85875537,1218.1,1218.0,28.06213336]
[1672668354315,6.85875537,1218.1,1218.0,15.85195336]
[1672668355199,6.85875537,1218.1,1218.0,19.84951157]
[1672668355724,6.85875537,1218.1,1218.0,28.05969157]
[1672668357513,6.85875537,1218.1,1218.0,36.26987157]
[1672668358578,6.85875537,1218.1,1218.0,28.05969157]
[1672668358792,6.85875537,1218.1,1218.0,28.05769157]
[1672668359002,6.85875537,1218.1,1218.0,28.05969157]
[1672668360385,6.85875537,1218.1,1218.0,19.84951157]
[1672668360770,6.85875537,1218.1,1218.0,15.84951157]
[1672668361022,6.85875537,1218.1,1218.0,7.63933157]
[1672668362078,6.85875537,1218.1,1218.0,15.84951157]
[1672668363076,15.75913091,1218.1,1218.0,3.23808661]
[1672668363286,15.75913091,1218.1,1218.0,3.17208661]
[1672668364509,7.54963091,1218.1,1218.0,3.17208661]
[1672668365446,23.96863091,1218.1,1218.0,3.17208661]
[1672668365820,15.75913091,1218.1,1218.0,3.17208661]
[1672668366714,7.54963091,1218.1,1218.0,3.17208661]
[1672668366924,6.85875537,1218.1,1218.0,3.17208661]
[1672668368126,6.85875537,1218.1,1218.0,0.17208661]
[1672668368337,24.89575537,1218.1,1218.0,0.17208661]
[1672668368655,37.10525537,1218.1,1218.0,0.03100661]
[1672668368874,41.80349191,1218.1,1218.0,0.03100661]
[1672668379975,27.97599191,1218.1,1218.0,0.03100661]
[1672668380762,36.18549191,1218.1,1218.0,0.03100661]
[1672668381029,27.97599191,1218.1,1218.0,0.03100661]
[1672668381250,36.18549191,1218.1,1218.0,0.03100661]
[1672668384193,27.97599191,1218.1,1218.0,0.03100661]
[1672668384334,36.18549191,1218.1,1218.0,0.03100661]
[1672668384545,27.97599191,1218.1,1218.0,0.03100661]
[1672668386227,36.18549191,1218.1,1218.0,0.03100661]
[1672668387445,27.97599191,1218.1,1218.0,0.03100661]
[1672668391952,27.97599191,1218.1,1218.0,0.02831173]
[1672668394214,36.18549191,1218.1,1218.0,0.02831173]
[1672668394634,27.97599191,1218.1,1218.0,0.02831173]
[1672668395491,36.18549191,1218.1,1218.0,0.02831173]
[1672668396603,27.97599191,1218.1,1218.0,0.02831173]
[1672668396948,36.18549191,1218.1,1218.0,0.02831173]
[1672668398331,0.02798827,1218.0,1217.8,4.07051019]
[1672668398550,29.63255,1217.9,1217.8,4.07051019]
[1672668398733,39.12628931,1217.9,1217.8,3.92943019]
[1672668399154,34.69884897,1217.9,1217.8,3.92943019]
[1672668400478,36.30384897,1217.9,1217.8,3.92943019]
[1672668400844,36.30384897,1217.9,1217.8,3.78835019]
[1672668401715,40.73128931,1217.9,1217.8,3.78835019]
[1672668402223,40.72926579,1217.9,1217.8,3.78835019]
[1672668402469,36.30182545,1217.9,1217.8,3.78835019]
[1672668402781,36.30182545,1217.9,1217.8,3.64727019]
[1672668405094,4.0,1217.8,1217.7,0.066]
[1672668405307,37.66474255,1217.8,1217.5,3.7390494]
[1672668405459,37.68074255,1217.8,1217.5,3.7390494]
[1672668406138,32.68074255,1217.8,1217.5,3.7390494]
[1672668406714,32.68074255,1217.8,1217.5,6.7390494]
[1672668407097,5.0,1217.6,1217.5,6.8050494]
[1672668407252,5.016,1217.6,1217.5,3.8050494]
[1672668407453,5.016,1217.6,1217.5,3.7390494]
[1672668407664,13.22887,1217.6,1217.5,3.7390494]
[1672668410859,21.44174,1217.6,1217.5,3.7390494]
[1672668412227,13.22887,1217.6,1217.5,3.7390494]
[1672668412420,21.44174,1217.6,1217.5,3.7390494]
[1672668412631,32.01234424,1217.6,1217.5,0.7390494]
[1672668416188,13.22887,1217.6,1217.5,0.7390494]
[1672668422391,5.016,1217.6,1217.5,0.7390494]
[1672668426503,13.22887,1217.6,1217.5,0.7390494]
[1672668426838,21.44174,1217.6,1217.5,0.7390494]
[1672668427197,13.22887,1217.6,1217.5,0.7390494]
[1672668427665,14.9883824,1217.6,1217.5,0.7390494]
[1672668428051,14.9883824,1217.6,1217.5,0.7366464]
[1672668430559,31.4141224,1217.6,1217.5,0.7366464]
[1672668433769,31.4141224,1217.6,1217.5,0.6866464]
[1672668437840,23.2012524,1217.6,1217.5,0.6866464]
[1672668438685,14.9883824,1217.6,1217.5,0.6866464]
[1672668440294,13.22887,1217.6,1217.5,0.6866464]
[1672668440504,5.016,1217.6,1217.5,0.6866464]
[1672668446454,4.966,1217.6,1217.5,0.6866464]
[1672668446665,4.95,1217.6,1217.5,0.6866464]
[1672668447983,24.70364,1217.7,1217.5,0.6866464]
[1672668448157,24.65364,1217.7,1217.5,0.6866464]
[1672668448910,5.0,1217.6,1217.5,0.6866464]
[1672668449100,5.016,1217.6,1217.5,0.6866464]
[1672668450719,13.22887,1217.6,1217.5,0.6866464]
[1672668453013,21.44174,1217.6,1217.5,0.6866464]
[1672668464835,29.65461,1217.6,1217.5,0.6866464]
[1672668468135,29.65461,1217.6,1217.5,0.68331024]
[1672668470242,5.016,1217.6,1217.5,4.83217138]
[1672668470451,5.016,1217.6,1217.5,16.04572138]
[1672668470717,5.016,1217.6,1217.5,11.89817138]
[1672668471098,5.016,1217.6,1217.5,7.89817138]
[1672668472189,13.22887,1217.6,1217.5,7.89817138]
[1672668472759,5.016,1217.6,1217.5,7.89817138]
[1672668474062,13.22887,1217.6,1217.5,7.89817138]
[1672668475809,5.016,1217.6,1217.5,7.89817138]
[1672668476231,13.22887,1217.6,1217.5,7.89817138]
[1672668477951,8.22887,1217.6,1217.5,7.89817138]
[1672668478379,0.016,1217.6,1217.5,11.89817138]
[1672668478540,5.0,1217.6,1217.5,7.89817138]
[1672668478755,5.016,1217.6,1217.5,7.89817138]
[1672668484745,0.016,1217.6,1217.5,7.89817138]
[1672668484954,24.65356,1217.7,1217.5,7.89817138]
[1672668485815,5.0,1217.6,1217.5,7.89817138]
[1672668486007,5.016,1217.6,1217.5,7.89817138]
[1672668486433,5.016,1217.6,1217.5,10.89817138]
[1672668491680,0.016,1217.6,1217.5,10.89817138]
[1672668491943,24.65376,1217.7,1217.5,10.89817138]
[1672668492154,24.65376,1217.7,1217.5,10.8952786]
[1672668492687,5.0,1217.6,1217.5,10.8952786]
[1672668492839,13.22887,1217.6,1217.5,10.8952786]
[1672668494324,21.44174,1217.6,1217.5,10.8952786]
[1672668497409,13.22887,1217.6,1217.5,10.8952786]
[1672668499919,13.22887,1217.6,1217.5,6.74641746]
[1672668499920,33.65461,1217.6,1217.5,6.74641746]
[1672668500091,36.625,1217.6,1217.5,6.74641746]
[1672668500297,36.625,1217.6,1217.5,3.74641746]
[1672668500562,36.625,1217.6,1217.5,3.68041746]
[1672668504771,32.625,1217.6,1217.5,3.68041746]
[1672668513031,32.625,1217.6,1217.5,3.67722177]
[1672668515043,29.65461,1217.6,1217.5,3.67722177]
[1672668515253,5.016,1217.6,1217.5,3.67722177]
[1672668515466,13.22887,1217.6,1217.5,3.67722177]
[1672668516038,29.65461,1217.6,1217.5,3.67722177]
[1672668526283,24.65461,1217.6,1217.5,3.67722177]
[1672668527552,29.65461,1217.6,1217.5,3.67722177]
[1672668530838,36.11405034,1217.6,1217.5,0.67722177]
[1672668531047,38.14605034,1217.6,1217.5,0.67722177]
[1672668531282,38.14605034,1217.6,1217.5,0.53614177]
[1672668532056,33.71861,1217.6,1217.5,0.53614177]
[1672668533318,33.71861,1217.6,1217.5,0.39506177]
[1672668533532,37.972243,1217.6,1217.5,0.39506177]
[1672668535321,37.972243,1217.6,1217.5,0.25398177]
[1672668536784,42.39968334,1217.6,1217.5,0.25398177]
[1672668537456,42.39968334,1217.6,1217.5,0.11290177]
[1672668537858,37.972243,1217.6,1217.5,0.11290177]
[1672668539429,4.0,1217.5,1217.3,2.97182177]
[1672668539625,31.67466,1217.4,1217.3,2.97182177]
[1672668539829,21.44444,1217.4,1217.3,2.97182177]
[1672668540044,5.016,1217.4,1217.3,19.76302325]
[1672668540304,5.016,1217.4,1217.3,26.61648291]
[1672668540632,5.016,1217.4,1217.3,18.61412325]
[1672668540839,5.016,1217.4,1217.3,14.18668291]
[1672668542726,5.016,1217.4,1217.3,10.18668291]
[1672668542934,5.016,1217.4,1217.3,14.18668291]
[1672668543128,5.016,1217.4,1217.3,10.18668291]
[1672668543353,5.016,1217.4,1217.3,14.18668291]
[1672668543557,5.016,1217.4,1217.3,10.18668291]
[1672668544269,5.016,1217.4,1217.3,14.18668291]
[1672668544503,5.016,1217.4,1217.3,30.61648291]
[1672668546433,5.016,1217.4,1217.3,22.40158291]
[1672668546641,5.016,1217.4,1217.3,45.28840326]
[1672668546790,5.016,1217.4,1217.3,37.07350326]
[1672668547144,5.016,1217.4,1217.3,24.43358291]
[1672668547335,5.016,1217.4,1217.3,20.43358291]
[1672668547537,13.23022,1217.4,1217.3,10.18668291]
[1672668548068,5.016,1217.4,1217.3,10.18668291]
[1672668548284,5.016,1217.4,1217.3,14.18668291]
[1672668549058,5.016,1217.4,1217.3,22.40158291]
[1672668550634,5.016,1217.4,1217.3,14.18668291]
[1672668551736,5.016,1217.4,1217.3,14.59491837]
[1672668552674,0.016,1217.4,1217.3,14.59491837]
[1672668552946,8.22958,1217.5,1217.3,14.59491837]
[1672668553574,5.0,1217.4,1217.3,14.59491837]
[1672668553785,5.016,1217.4,1217.3,14.59491837]
[1672668553942,5.016,1217.4,1217.3,10.59491837]
[1672668555108,5.016,1217.4,1217.3,10.18668291]
[1672668556731,5.016,1217.4,1217.3,14.18668291]
[1672668557318,5.016,1217.4,1217.3,10.18668291]
[1672668559506,0.016,1217.4,1217.3,10.18668291]
[1672668559719,29.64266,1217.4,1217.3,6.03782177]
[1672668559971,31.41650032,1217.4,1217.3,6.03782177]
[1672668560355,31.41650032,1217.4,1217.3,3.03550384]
[1672668560565,31.41650032,1217.4,1217.3,2.96950384]
[1672668564615,33.30226617,1217.4,1217.3,2.96950384]
[1672668574542,28.30226617,1217.4,1217.3,2.96950384]
[1672668575481,33.30226617,1217.4,1217.3,2.96950384]
[1672668579276,35.33126617,1217.4,1217.3,2.96950384]
[1672668581497,30.33126617,1217.4,1217.3,2.96950384]
[1672668582566,35.33126617,1217.4,1217.3,2.96950384]
[1672668583316,35.33126617,1217.4,1217.3,2.96680648]
[1672668588241,33.30226617,1217.4,1217.3,2.96680648]
[1672668590719,35.33526617,1217.4,1217.3,2.96680648]
[1672668601267,33.30226617,1217.4,1217.3,2.96680648]
[1672668602076,28.30226617,1217.4,1217.3,2.96680648]
[1672668603034,33.30226617,1217.4,1217.3,2.96680648]
[1672668603655,16.87382617,1217.4,1217.3,2.96680648]
[1672668604015,15.11598585,1217.4,1217.3,2.96680648]
[1672668604233,23.33020585,1217.4,1217.3,2.96680648]
[1672668604449,31.54442585,1217.4,1217.3,2.96680648]
[1672668607485,31.54442585,1217.4,1217.3,2.96304612]
[1672668608751,23.33020585,1217.4,1217.3,2.96304612]
[1672668609470,31.54442585,1217.4,1217.3,2.96304612]
[1672668609671,23.33020585,1217.4,1217.3,2.96304612]
[1672668610431,18.33020585,1217.4,1217.3,2.96304612]
[1672668610746,10.11598585,1217.4,1217.3,2.96304612]
[1672668611105,15.11598585,1217.4,1217.3,2.96304612]
[1672668611375,23.33020585,1217.4,1217.3,2.96304612]
[1672668614120,31.54442585,1217.4,1217.3,2.96304612]
[1672668614263,23.33020585,1217.4,1217.3,2.96304612]
[1672668615169,31.54442585,1217.4,1217.3,2.96304612]
[1672668615320,23.33020585,1217.4,1217.3,2.96304612]
[1672668615529,31.54442585,1217.4,1217.3,2.96304612]
[1672668616581,35.52522644,1217.4,1217.3,2.96304612]
[1672668620836,27.31100644,1217.4,1217.3,2.96304612]
[1672668621881,23.33020585,1217.4,1217.3,2.96304612]
[1672668622098,15.11598585,1217.4,1217.3,2.96304612]
[1672668625151,23.33020585,1217.4,1217.3,2.96304612]
[1672668625512,31.54442585,1217.4,1217.3,2.96304612]
[1672668625728,6.90176585,1217.4,1217.3,2.96304612]
[1672668626046,23.33020585,1217.4,1217.3,2.96304612]
[1672668626619,31.54442585,1217.4,1217.3,2.96304612]
[1672668627238,23.33020585,1217.4,1217.3,2.96304612]
[1672668627903,31.54442585,1217.4,1217.3,2.96304612]
[1672668628748,31.54442585,1217.4,1217.3,2.96002745]
[1672668629882,23.33020585,1217.4,1217.3,2.96002745]
[1672668630615,31.54442585,1217.4,1217.3,2.96002745]
[1672668632742,23.33020585,1217.4,1217.3,2.96002745]
[1672668632957,31.54442585,1217.4,1217.3,2.96002745]
[1672668633534,23.33020585,1217.4,1217.3,2.96002745]
[1672668634235,31.54442585,1217.4,1217.3,2.96002745]
[1672668635159,23.33020585,1217.4,1217.3,2.96002745]
[1672668636181,31.54442585,1217.4,1217.3,2.96002745]
[1672668636392,23.33020585,1217.4,1217.3,2.96002745]
[1672668639326,31.54442585,1217.4,1217.3,2.96002745]
[1672668639535,23.33020585,1217.4,1217.3,2.96002745]
[1672668642388,18.33020585,1217.4,1217.3,2.96002745]
[1672668643524,23.33020585,1217.4,1217.3,2.96002745]
[1672668643773,31.54442585,1217.4,1217.3,2.96002745]
[1672668644429,23.33020585,1217.4,1217.3,2.96002745]
[1672668644584,31.50842585,1217.4,1217.3,2.96002745]
[1672668645687,23.29420585,1217.4,1217.3,2.96002745]
[1672668646174,31.50842585,1217.4,1217.3,2.96002745]
[1672668650397,23.29420585,1217.4,1217.3,2.96002745]
[1672668650606,31.50842585,1217.4,1217.3,2.96002745]
[1672668650993,26.50842585,1217.4,1217.3,2.96002745]
[1672668652095,31.50842585,1217.4,1217.3,2.96002745]
[1672668658073,26.50842585,1217.4,1217.3,2.96002745]
[1672668658914,34.98587344,1217.4,1217.3,2.96002745]
[1672668665354,31.50842585,1217.4,1217.3,2.96002745]
[1672668666503,26.50842585,1217.4,1217.3,2.96002745]
[1672668667386,26.50842585,1217.4,1217.3,2.95612571]
[1672668667642,31.50842585,1217.4,1217.3,2.95612571]
[1672668672636,31.50545874,1217.4,1217.3,2.95612571]
[1672668673538,26.50545874,1217.4,1217.3,2.95612571]
[1672668674730,31.50545874,1217.4,1217.3,2.95612571]
[1672668680658,26.50545874,1217.4,1217.3,2.95612571]
[1672668681079,18.29123874,1217.4,1217.3,2.95612571]
[1672668681331,26.50545874,1217.4,1217.3,2.95612571]
[1672668681669,23.29123874,1217.4,1217.3,2.95612571]
[1672668683883,31.50545874,1217.4,1217.3,2.95612571]
[1672668684414,23.29123874,1217.4,1217.3,2.95612571]
[1672668684924,31.50545874,1217.4,1217.3,2.95612571]
[1672668685302,23.29123874,1217.4,1217.3,2.95612571]
[1672668685960,31.50545874,1217.4,1217.3,2.95612571]
[1672668693372,26.50545874,1217.4,1217.3,2.95612571]
[1672668694372,31.50545874,1217.4,1217.3,2.95612571]
[1672668696852,31.50545874,1217.4,1217.3,2.95290253]
[1672668700504,26.50545874,1217.4,1217.3,2.95290253]
[1672668701407,31.50545874,1217.4,1217.3,2.95290253]
[1672668701878,35.38399933,1217.4,1217.3,2.95290253]
[1672668707373,30.38399933,1217.4,1217.3,2.95290253]
[1672668708381,35.38399933,1217.4,1217.3,2.95290253]
[1672668711860,27.16977933,1217.4,1217.3,2.95290253]
[1672668712268,23.29123874,1217.4,1217.3,2.95290253]
[1672668713020,31.50545874,1217.4,1217.3,2.95290253]
[1672668713663,23.29123874,1217.4,1217.3,2.95290253]
[1672668714008,31.50545874,1217.4,1217.3,2.95290253]
[1672668719483,31.50545874,1217.4,1217.3,2.9496387]
[1672668719688,35.68520961,1217.4,1217.3,2.9496387]
[1672668720546,30.68520961,1217.4,1217.3,2.9496387]
[1672668721559,35.68520961,1217.4,1217.3,2.9496387]
[1672668727536,30.68520961,1217.4,1217.3,2.9496387]
[1672668728742,35.68520961,1217.4,1217.3,2.9496387]
[1672668734620,30.68520961,1217.4,1217.3,2.9496387]
[1672668735703,35.68520961,1217.4,1217.3,2.9496387]
[1672668741634,30.68520961,1217.4,1217.3,2.9496387]
[1672668741850,30.68520961,1217.4,1217.3,2.94736414]
[1672668742696,35.68520961,1217.4,1217.3,2.94736414]
[1672668756715,30.68520961,1217.4,1217.3,2.94736414]
[1672668757807,35.68520961,1217.4,1217.3,2.94736414]
[1672668758595,27.47098961,1217.4,1217.3,2.94736414]
[1672668758813,35.68520961,1217.4,1217.3,2.94736414]
[1672668760548,31.50545874,1217.4,1217.3,2.94736414]
[1672668760691,6.86279874,1217.4,1217.3,11.52366562]
[1672668760899,6.86279874,1217.4,1217.3,19.80456562]
[1672668761111,6.86279874,1217.4,1217.3,22.80456562]
[1672668762314,6.86279874,1217.4,1217.3,14.58966562]
[1672668762500,6.86279874,1217.4,1217.3,10.16222528]
[1672668763593,6.86279874,1217.4,1217.3,10.16007901]
[1672668764576,6.86279874,1217.4,1217.3,31.01731935]
[1672668765486,6.86279874,1217.4,1217.3,41.67478709]
[1672668766304,2.00229874,1217.4,1217.3,46.22317091]
[1672668766493,2.00229874,1217.4,1217.3,46.84017091]
[1672668766703,2.00229874,1217.4,1217.3,44.81217091]
[1672668766972,4.05182446,1217.4,1217.3,44.81217091]
[1672668767364,4.05382446,1217.4,1217.3,44.81017091]
[1672668767578,2.04952572,1217.4,1217.3,44.81217091]
[1672668768854,2.04952572,1217.4,1217.3,44.82755827]
[1672668771767,2.04952572,1217.4,1217.3,44.21055827]
[1672668774729,2.04952572,1217.4,1217.3,42.17755827]
[1672668775419,2.04952572,1217.4,1217.3,37.75011793]
[1672668775547,2.04952572,1217.4,1217.3,42.15787097]
[1672668777389,2.04952572,1217.4,1217.3,37.75011793]
[1672668777611,2.04952572,1217.4,1217.3,13.10541793]
[1672668777918,2.04952572,1217.4,1217.3,21.09031793]
[1672668778353,2.04952572,1217.4,1217.3,29.05283411]
[1672668779247,7.04952572,1217.4,1217.3,29.05283411]
[1672668780466,7.04952572,1217.4,1217.3,29.26855649]
[1672668785283,2.04952572,1217.4,1217.3,29.26855649]
[1672668786521,2.04952572,1217.4,1217.3,37.73584031]
[1672668786716,7.04952572,1217.4,1217.3,37.73584031]
[1672668787182,7.04952572,1217.4,1217.3,29.52094031]
[1672668787724,7.04952572,1217.4,1217.3,33.92869335]
[1672668788028,2.04952572,1217.4,1217.3,55.08459335]
[1672668788255,0.82527472,1217.4,1217.3,55.08459335]
[1672668789559,0.82727472,1217.4,1217.3,55.08259335]
[1672668789894,0.82527472,1217.4,1217.3,55.08459335]
[1672668791458,0.82527472,1217.4,1217.3,53.05159335]
[1672668793362,8.3301,1217.9,1217.4,4.0]
[1672668793680,8.2061,1217.9,1217.6,6.18186114]
[1672668793906,0.6187,1217.9,1217.7,35.78546114]
[1672668794082,0.6167,1217.9,1217.8,4.14886114]
[1672668794281,16.48541,1218.1,1217.8,18.30559901]
[1672668794282,0.6166,1218.0,1217.8,18.30559901]
[1672668794486,0.6166,1218.0,1217.8,15.37159901]
[1672668795327,0.6166,1218.0,1217.8,31.79463901]
[1672668795909,0.6166,1218.1,1217.8,31.79463901]
[1672668798816,2.18887775,1218.0,1217.8,31.79463901]
[1672668799052,0.6167,1217.9,1217.8,31.79463901]
[1672668799261,0.6167,1217.9,1217.8,34.79463901]
[1672668799593,0.6167,1217.9,1217.8,26.58311901]
[1672668799743,0.6167,1217.9,1217.8,26.98806167]
[1672668799952,0.6167,1217.9,1217.8,35.19958167]
[1672668800492,0.6167,1217.9,1217.8,26.98806167]
[1672668801583,2.80547775,1218.0,1217.8,26.98806167]
[1672668801950,2.80547775,1218.0,1217.8,35.19958167]
[1672668802317,2.80547775,1218.0,1217.8,26.98806167]
[1672668802682,2.80547775,1218.0,1217.8,35.19958167]
[1672668805033,2.80547775,1218.0,1217.9,8.14886114]
[1672668805375,2.80547775,1218.0,1217.9,20.63656114]
[1672668807129,2.80547775,1218.0,1217.9,28.84741114]
[1672668808180,2.80547775,1218.0,1217.9,20.63656114]
[1672668808984,2.80547775,1218.0,1217.9,28.84741114]
[1672668809197,2.80547775,1218.0,1217.9,20.63656114]
[1672668811211,2.18887775,1218.0,1217.9,20.63656114]
[1672668812459,2.18887775,1218.0,1217.9,28.84741114]
[1672668813340,2.18887775,1218.0,1217.9,20.63656114]
[1672668813877,2.18887775,1218.0,1217.9,28.84741114]
[1672668814239,2.18887775,1218.0,1217.9,20.63656114]
[1672668816365,2.18887775,1218.0,1217.9,20.63426749]
[1672668817131,2.18887775,1218.0,1217.9,29.09750131]
[1672668817348,2.18887775,1218.0,1217.9,36.48177693]
[1672668817656,2.18887775,1218.0,1217.9,38.73977693]
[1672668823748,2.18887775,1218.0,1217.9,34.12550131]
[1672668824004,2.18887775,1218.0,1217.9,23.63426749]
[1672668824579,2.18887775,1218.0,1217.9,31.84511749]
[1672668825230,2.18887775,1218.0,1217.9,32.07511749]
[1672668825670,2.18887775,1218.0,1217.9,23.86426749]
[1672668825877,2.18887775,1218.0,1217.9,30.28154311]
[1672668826210,2.18887775,1218.0,1217.9,38.49239311]
[1672668826383,2.18887775,1218.0,1217.9,23.87829992]
[1672668828296,2.18887775,1218.0,1217.9,32.08914992]
[1672668828502,2.18887775,1218.0,1217.9,23.87829992]
[1672668829853,2.18887775,1218.0,1217.9,32.08914992]
[1672668830069,2.18887775,1218.0,1217.9,23.87829992]
[1672668832645,2.18887775,1218.0,1217.9,32.08914992]
[1672668833043,2.18887775,1218.0,1217.9,36.47342554]
[1672668833599,2.18887775,1218.0,1217.9,32.08914992]
[1672668836419,2.18887775,1218.0,1217.9,27.64829992]
[1672668836630,2.18887775,1218.0,1217.9,35.85914992]
[1672668837897,2.18887775,1218.0,1217.9,15.43744992]
[1672668838207,2.18887775,1218.0,1217.9,19.43744992]
[1672668838417,2.18887775,1218.0,1217.9,15.43744992]
[1672668838837,2.18887775,1218.0,1217.9,19.43744992]
[1672668839219,2.18887775,1218.0,1217.9,15.43744992]
[1672668839972,2.18887775,1218.0,1217.9,23.64829992]